[Event "Titled Tuesday Blitz December 20 Late 2022"]
[White "Kravtsiv, Martyn"]
[Black "Barria Zuniga, Daniel"]
[WhiteFideId "14113147"]
[BlackFideId "3400816"]
[WhiteElo "2695"]
[BlackElo "2414"]
[Result "1-0"]
[Round "07"]
[TimeControl "180+1"]
[Date "2022.12.20"]
[WhiteClock "0:00:05"]
[BlackClock "0:00:02"]

1. e4 {[%clk 0:02:59]}  c5 {[%clk 0:02:58]} 2. Nf3 {[%clk 0:02:58]}  Nc6 {[%clk 0:02:58]} 3. d4 {[%clk 0:02:57]}  cxd4 {[%clk 0:02:59]} 4. Nxd4 {[%clk 0:02:58]}  e6 {[%clk 0:03:00]} 5. Nc3 {[%clk 0:02:57]}  a6 {[%clk 0:03:00]} 6. Be2 {[%clk 0:02:57]}  Na5 {[%clk 0:03:00]} 7. O-O {[%clk 0:02:56]}  b5 {[%clk 0:03:00]} 8. e5 {[%clk 0:02:55]}  Bb7 {[%clk 0:03:00]} 9. Bf3 {[%clk 0:02:54]}  Qc7 {[%clk 0:02:59]} 10. Re1 {[%clk 0:02:48]}  Rc8 {[%clk 0:02:49]} 11. Ne4 {[%clk 0:02:39]}  Qxe5 {[%clk 0:02:39]} 12. Bg5 {[%clk 0:02:14]}  Bxe4 {[%clk 0:02:36]} 13. Qd2 {[%clk 0:01:55]}  Nc4 {[%clk 0:02:29]} 14. Rxe4 {[%clk 0:01:43]}  Nxd2 {[%clk 0:02:16]} 15. Rxe5 {[%clk 0:01:42]}  Nxf3+ {[%clk 0:02:17]} 16. Nxf3 {[%clk 0:01:42]}  f6 {[%clk 0:02:17]} 17. Re2 {[%clk 0:01:41]}  fxg5 {[%clk 0:02:17]} 18. Nxg5 {[%clk 0:01:42]}  Nf6 {[%clk 0:02:18]} 19. Rd1 {[%clk 0:01:41]}  h6 {[%clk 0:02:07]} 20. Nf3 {[%clk 0:01:40]}  Be7 {[%clk 0:01:55]} 21. Ne5 {[%clk 0:01:38]}  O-O {[%clk 0:01:54]} 22. g3 {[%clk 0:01:34]}  Rfd8 {[%clk 0:01:51]} 23. Kg2 {[%clk 0:01:34]}  d6 {[%clk 0:01:46]} 24. Nd3 {[%clk 0:01:33]}  e5 {[%clk 0:01:44]} 25. c3 {[%clk 0:01:33]}  a5 {[%clk 0:01:43]} 26. h3 {[%clk 0:01:29]}  Kf7 {[%clk 0:01:41]} 27. g4 {[%clk 0:01:27]}  g5 {[%clk 0:01:38]} 28. a3 {[%clk 0:01:25]}  e4 {[%clk 0:01:35]} 29. Nc1 {[%clk 0:01:23]}  d5 {[%clk 0:01:35]} 30. Nb3 {[%clk 0:01:24]}  a4 {[%clk 0:01:30]} 31. Nd4 {[%clk 0:01:23]}  Bc5 {[%clk 0:01:30]} 32. Nf5 {[%clk 0:01:15]}  h5 {[%clk 0:01:27]} 33. f3 {[%clk 0:01:12]}  exf3+ {[%clk 0:01:24]} 34. Kxf3 {[%clk 0:01:12]}  hxg4+ {[%clk 0:01:24]} 35. hxg4 {[%clk 0:01:11]}  Re8 {[%clk 0:01:23]} 36. Rh2 {[%clk 0:01:06]}  Re4 {[%clk 0:01:21]} 37. Rdh1 {[%clk 0:00:54]}  Rf4+ {[%clk 0:01:20]} 38. Ke2 {[%clk 0:00:54]}  Re8+ {[%clk 0:01:17]} 39. Kd1 {[%clk 0:00:51]}  Nxg4 {[%clk 0:01:12]} 40. Rh7+ {[%clk 0:00:50]}  Kf6 {[%clk 0:01:12]} 41. Ng7 {[%clk 0:00:43]}  Nf2+ {[%clk 0:00:58]} 42. Kc1 {[%clk 0:00:42]}  Nxh1 {[%clk 0:00:58]} 43. Nxe8+ {[%clk 0:00:41]}  Kg6 {[%clk 0:00:59]} 44. Rc7 {[%clk 0:00:41]}  Be3+ {[%clk 0:00:43]} 45. Kc2 {[%clk 0:00:40]}  g4 {[%clk 0:00:44]} 46. Kd3 {[%clk 0:00:31]}  Bf2 {[%clk 0:00:34]} 47. Rg7+ {[%clk 0:00:26]}  Kh6 {[%clk 0:00:29]} 48. Rg8 {[%clk 0:00:26]}  Bh4 {[%clk 0:00:21]} 49. Rh8+ {[%clk 0:00:24]}  Kg5 {[%clk 0:00:20]} 50. Rg8+ {[%clk 0:00:23]}  Kf5 {[%clk 0:00:17]} 51. Ng7+ {[%clk 0:00:16]}  Ke5 {[%clk 0:00:17]} 52. Re8+ {[%clk 0:00:14]}  Kd6 {[%clk 0:00:14]} 53. Re6+ {[%clk 0:00:13]}  Kd7 {[%clk 0:00:13]} 54. Rh6 {[%clk 0:00:13]}  Be7 {[%clk 0:00:09]} 55. Rxh1 {[%clk 0:00:12]}  Rf2 {[%clk 0:00:07]} 56. Rg1 {[%clk 0:00:09]}  Rxb2 {[%clk 0:00:07]} 57. Rxg4 {[%clk 0:00:10]}  Bxa3 {[%clk 0:00:07]} 58. Nf5 {[%clk 0:00:10]}  Bc5 {[%clk 0:00:06]} 59. Rg7+ {[%clk 0:00:08]}  Ke6 {[%clk 0:00:06]} 60. Ng3 {[%clk 0:00:07]}  a3 {[%clk 0:00:06]} 61. Rg6+ {[%clk 0:00:07]}  Kd7 {[%clk 0:00:06]} 62. Ra6 {[%clk 0:00:07]}  a2 {[%clk 0:00:06]} 63. Ne2 {[%clk 0:00:07]}  b4 {[%clk 0:00:05]} 64. cxb4 {[%clk 0:00:05]}  Bxb4 {[%clk 0:00:06]} 65. Nc1 {[%clk 0:00:06]}  Rh2 {[%clk 0:00:05]} 66. Nxa2 {[%clk 0:00:05]}  Bc5 {[%clk 0:00:05]} 67. Nc3 {[%clk 0:00:05]}  Rh3+ {[%clk 0:00:05]} 68. Kc2 {[%clk 0:00:05]}  d4 {[%clk 0:00:05]} 69. Ne4 {[%clk 0:00:05]}  Bb4 {[%clk 0:00:05]} 70. Nf6+ {[%clk 0:00:05]}  Kc7 {[%clk 0:00:05]} 71. Nd5+ {[%clk 0:00:05]}  Kc8 {[%clk 0:00:05]} 72. Nxb4 {[%clk 0:00:06]}  Kb7 {[%clk 0:00:05]} 73. Rd6 {[%clk 0:00:05]}  Rc3+ {[%clk 0:00:04]} 74. Kb2 {[%clk 0:00:05]}  Rh3 {[%clk 0:00:04]} 75. Rxd4 {[%clk 0:00:05]}  Kb6 {[%clk 0:00:04]} 76. Nd3 {[%clk 0:00:05]}  Kc6 {[%clk 0:00:04]} 77. Kc3 {[%clk 0:00:06]}  Kc7 {[%clk 0:00:04]} 78. Rd5 {[%clk 0:00:06]}  Kb6 {[%clk 0:00:05]} 79. Kc4 {[%clk 0:00:06]}  Kc6 {[%clk 0:00:05]} 80. Nb4+ {[%clk 0:00:05]}  Kb6 {[%clk 0:00:05]} 81. Rd6+ {[%clk 0:00:06]}  Kc7 {[%clk 0:00:06]} 82. Rg6 {[%clk 0:00:06]}  Kd7 {[%clk 0:00:06]} 83. Nd5 {[%clk 0:00:06]}  Rh1 {[%clk 0:00:06]} 84. Kd4 {[%clk 0:00:06]}  Ke8 {[%clk 0:00:04]} 85. Rg7 {[%clk 0:00:05]}  Kf8 {[%clk 0:00:04]} 86. Rd7 {[%clk 0:00:04]}  Rh4+ {[%clk 0:00:04]} 87. Ke5 {[%clk 0:00:04]}  Rh5+ {[%clk 0:00:05]} 88. Ke6 {[%clk 0:00:05]}  Rh1 {[%clk 0:00:04]} 89. Nf4 {[%clk 0:00:05]}  Rf1 {[%clk 0:00:03]} 90. Ke5 {[%clk 0:00:04]}  Ke8 {[%clk 0:00:02]} 91. Ra7 {[%clk 0:00:03]}  Re1+ {[%clk 0:00:02]} 92. Kf6 {[%clk 0:00:03]}  Kd8 {[%clk 0:00:02]} 93. Ne6+ {[%clk 0:00:02]}  Kc8 {[%clk 0:00:03]} 94. Ke7 {[%clk 0:00:02]}  Kb8 {[%clk 0:00:03]} 95. Rd7 {[%clk 0:00:01]}  Kc8 {[%clk 0:00:03]} 96. Rc7+ {[%clk 0:00:02]}  Kb8 {[%clk 0:00:03]} 97. Rc4 {[%clk 0:00:02]}  Kb7 {[%clk 0:00:03]} 98. Kd7 {[%clk 0:00:03]}  Kb6 {[%clk 0:00:04]} 99. Rb4+ {[%clk 0:00:03]}  Ka5 {[%clk 0:00:04]} 100. Rb8 {[%clk 0:00:03]}  Ka4 {[%clk 0:00:04]} 101. Nc5+ {[%clk 0:00:03]}  Ka3 {[%clk 0:00:04]} 102. Kd6 {[%clk 0:00:03]}  Rd1+ {[%clk 0:00:04]} 103. Kc6 {[%clk 0:00:04]}  Rh1 {[%clk 0:00:04]} 104. Kd5 {[%clk 0:00:04]}  Ka2 {[%clk 0:00:04]} 105. Kc4 {[%clk 0:00:04]}  Rc1+ {[%clk 0:00:03]} 106. Kd4 {[%clk 0:00:03]}  Rh1 {[%clk 0:00:03]} 107. Kc3 {[%clk 0:00:03]}  Rh3+ {[%clk 0:00:03]} 108. Nd3 {[%clk 0:00:02]}  Ka1 {[%clk 0:00:03]} 109. Rb6 {[%clk 0:00:02]}  Rg3 {[%clk 0:00:02]} 110. Rb5 {[%clk 0:00:02]}  Rh3 {[%clk 0:00:03]} 111. Kd2 {[%clk 0:00:01]}  Rh2+ {[%clk 0:00:03]} 112. Kc1 {[%clk 0:00:01]}  Rh1+ {[%clk 0:00:03]} 113. Kc2 {[%clk 0:00:02]}  Rh2+ {[%clk 0:00:04]} 114. Kc3 {[%clk 0:00:03]}  Rh3 {[%clk 0:00:04]} 115. Ra5+ {[%clk 0:00:03]}  Kb1 {[%clk 0:00:04]} 116. Rf5 {[%clk 0:00:04]}  Rg3 {[%clk 0:00:04]} 117. Rf1+ {[%clk 0:00:04]}  Ka2 {[%clk 0:00:04]} 118. Re1 {[%clk 0:00:05]}  Rg2 {[%clk 0:00:03]} 119. Nb4+ {[%clk 0:00:04]}  Ka3 {[%clk 0:00:03]} 120. Ra1+ {[%clk 0:00:05]}  Ra2 {[%clk 0:00:02]} 121. Rxa2# {[%clk 0:00:05]} 1-0


[Site "https://www.chess.com"]

[Event "Titled Tuesday Blitz December 20 Late 2022"]
[White "Krishnan, Varun"]
[Black "Movahed, Sina"]
[WhiteFideId "5054508"]
[BlackFideId "42520835"]
[WhiteElo "2606"]
[BlackElo "2225"]
[Result "1-0"]
[Round "07"]
[TimeControl "180+1"]
[Date "2022.12.20"]
[WhiteClock "0:00:09"]
[BlackClock "0:00:01"]

1. d4 {[%clk 0:03:00]}  Nf6 {[%clk 0:02:59]} 2. c4 {[%clk 0:03:00]}  g6 {[%clk 0:03:00]} 3. Nf3 {[%clk 0:02:59]}  Bg7 {[%clk 0:03:00]} 4. g3 {[%clk 0:02:59]}  O-O {[%clk 0:03:01]} 5. Bg2 {[%clk 0:03:00]}  d6 {[%clk 0:03:01]} 6. O-O {[%clk 0:03:00]}  Nbd7 {[%clk 0:03:02]} 7. b3 {[%clk 0:03:00]}  e5 {[%clk 0:03:02]} 8. dxe5 {[%clk 0:02:58]}  dxe5 {[%clk 0:03:02]} 9. Bb2 {[%clk 0:02:58]}  e4 {[%clk 0:03:02]} 10. Nd4 {[%clk 0:02:56]}  e3 {[%clk 0:03:01]} 11. fxe3 {[%clk 0:02:56]}  Ng4 {[%clk 0:03:00]} 12. Qd2 {[%clk 0:02:52]}  Qe7 {[%clk 0:02:56]} 13. Nc3 {[%clk 0:02:48]}  Qxe3+ {[%clk 0:02:33]} 14. Qxe3 {[%clk 0:02:39]}  Nxe3 {[%clk 0:02:34]} 15. Nd5 {[%clk 0:02:33]}  Nxf1 {[%clk 0:02:18]} 16. Nxc7 {[%clk 0:02:24]}  Ne3 {[%clk 0:01:18]} 17. Nxa8 {[%clk 0:02:23]}  Nxg2 {[%clk 0:01:18]} 18. Kxg2 {[%clk 0:02:22]}  b5 {[%clk 0:01:19]} 19. Nc7 {[%clk 0:02:17]}  bxc4 {[%clk 0:01:19]} 20. bxc4 {[%clk 0:02:18]}  Bb7+ {[%clk 0:01:19]} 21. Nd5 {[%clk 0:02:14]}  Nb6 {[%clk 0:01:17]} 22. e4 {[%clk 0:01:34]}  Nxc4 {[%clk 0:01:11]} 23. Bc3 {[%clk 0:01:34]}  Bxd5 {[%clk 0:00:58]} 24. exd5 {[%clk 0:01:33]}  Ne3+ {[%clk 0:00:59]} 25. Kf3 {[%clk 0:01:34]}  Nxd5 {[%clk 0:01:00]} 26. Bb2 {[%clk 0:01:32]}  Rb8 {[%clk 0:00:59]} 27. Nc6 {[%clk 0:01:17]}  Rxb2 {[%clk 0:00:57]} 28. Rd1 {[%clk 0:01:17]}  Nb4 {[%clk 0:00:48]} 29. Rd8+ {[%clk 0:01:01]}  Bf8 {[%clk 0:00:48]} 30. Ne5 {[%clk 0:01:02]}  Kg7 {[%clk 0:00:41]} 31. Rd7 {[%clk 0:01:02]}  Kf6 {[%clk 0:00:41]} 32. Nxf7 {[%clk 0:00:59]}  Nc6 {[%clk 0:00:38]} 33. h4 {[%clk 0:00:53]}  Rxa2 {[%clk 0:00:37]} 34. Ke4 {[%clk 0:00:49]}  Re2+ {[%clk 0:00:35]} 35. Kf3 {[%clk 0:00:44]}  Re7 {[%clk 0:00:32]} 36. Rd6+ {[%clk 0:00:41]}  Kxf7 {[%clk 0:00:32]} 37. Rxc6 {[%clk 0:00:41]}  Rb7 {[%clk 0:00:30]} 38. Ra6 {[%clk 0:00:41]}  Bc5 {[%clk 0:00:29]} 39. g4 {[%clk 0:00:40]}  Bb6 {[%clk 0:00:30]} 40. h5 {[%clk 0:00:39]}  gxh5 {[%clk 0:00:30]} 41. gxh5 {[%clk 0:00:39]}  Kg7 {[%clk 0:00:31]} 42. Ra2 {[%clk 0:00:36]}  Kh6 {[%clk 0:00:31]} 43. Kg4 {[%clk 0:00:36]}  Rg7+ {[%clk 0:00:27]} 44. Kf5 {[%clk 0:00:36]}  Rg5+ {[%clk 0:00:27]} 45. Kf6 {[%clk 0:00:36]}  Rxh5 {[%clk 0:00:27]} 46. Re2 {[%clk 0:00:35]}  Rh3 {[%clk 0:00:27]} 47. Rg2 {[%clk 0:00:33]}  Rf3+ {[%clk 0:00:25]} 48. Ke6 {[%clk 0:00:33]}  Rg3 {[%clk 0:00:25]} 49. Rxg3 {[%clk 0:00:33]}  Kh5 {[%clk 0:00:22]} 50. Kf5 {[%clk 0:00:33]}  Kh4 {[%clk 0:00:19]} 51. Rg4+ {[%clk 0:00:33]}  Kh3 {[%clk 0:00:19]} 52. Rg5 {[%clk 0:00:31]}  Kh4 {[%clk 0:00:18]} 53. Rg4+ {[%clk 0:00:31]}  Kh5 {[%clk 0:00:18]} 54. Rg2 {[%clk 0:00:29]}  Kh6 {[%clk 0:00:15]} 55. Kf6 {[%clk 0:00:29]}  Kh5 {[%clk 0:00:15]} 56. Rh2+ {[%clk 0:00:27]}  Kg4 {[%clk 0:00:15]} 57. Rxh7 {[%clk 0:00:28]}  Kf4 {[%clk 0:00:16]} 58. Ke6 {[%clk 0:00:28]}  Ke4 {[%clk 0:00:16]} 59. Kd6 {[%clk 0:00:27]}  Kd4 {[%clk 0:00:16]} 60. Rh4+ {[%clk 0:00:26]}  Kc3 {[%clk 0:00:16]} 61. Kc6 {[%clk 0:00:26]}  Bd4 {[%clk 0:00:17]} 62. Kd5 {[%clk 0:00:26]}  Bb6 {[%clk 0:00:17]} 63. Rc4+ {[%clk 0:00:25]}  Kb3 {[%clk 0:00:17]} 64. Re4 {[%clk 0:00:25]}  a5 {[%clk 0:00:16]} 65. Kc6 {[%clk 0:00:25]}  Bf2 {[%clk 0:00:15]} 66. Kb5 {[%clk 0:00:24]}  a4 {[%clk 0:00:07]} 67. Rb4+ {[%clk 0:00:23]}  Kc3 {[%clk 0:00:07]} 68. Rxa4 {[%clk 0:00:23]}  Be3 {[%clk 0:00:08]} 69. Rc4+ {[%clk 0:00:22]}  Kd3 {[%clk 0:00:09]} 70. Ra4 {[%clk 0:00:22]}  Bd4 {[%clk 0:00:09]} 71. Kc6 {[%clk 0:00:21]}  Ke4 {[%clk 0:00:08]} 72. Rc4 {[%clk 0:00:20]}  Ke5 {[%clk 0:00:06]} 73. Rc2 {[%clk 0:00:20]}  Ke4 {[%clk 0:00:07]} 74. Kb5 {[%clk 0:00:18]}  Kd5 {[%clk 0:00:07]} 75. Rd2 {[%clk 0:00:18]}  Ke4 {[%clk 0:00:07]} 76. Kc4 {[%clk 0:00:18]}  Be3 {[%clk 0:00:06]} 77. Rd8 {[%clk 0:00:17]}  Bf4 {[%clk 0:00:06]} 78. Re8+ {[%clk 0:00:16]}  Be5 {[%clk 0:00:07]} 79. Kc5 {[%clk 0:00:16]}  Kf5 {[%clk 0:00:06]} 80. Kd5 {[%clk 0:00:17]}  Bf6 {[%clk 0:00:07]} 81. Rf8 {[%clk 0:00:17]}  Kg6 {[%clk 0:00:07]} 82. Ke6 {[%clk 0:00:16]}  Bg5 {[%clk 0:00:07]} 83. Rg8+ {[%clk 0:00:15]}  Kh6 {[%clk 0:00:06]} 84. Kf5 {[%clk 0:00:13]}  Bc1 {[%clk 0:00:06]} 85. Rg6+ {[%clk 0:00:11]}  Kh7 {[%clk 0:00:05]} 86. Kf6 {[%clk 0:00:10]}  Bb2+ {[%clk 0:00:04]} 87. Kf7 {[%clk 0:00:11]}  Bc1 {[%clk 0:00:05]} 88. Rg1 {[%clk 0:00:09]}  Bh6 {[%clk 0:00:01]} 89. Rh1 {[%clk 0:00:09]} 1-0


[Site "https://www.chess.com"]

[Event "Titled Tuesday Blitz December 20 Late 2022"]
[White "Martinez Reyes, Pedro Ramon"]
[Black "Sjugirov, Sanan"]
[WhiteFideId "3901807"]
[BlackFideId "4189302"]
[WhiteElo "2354"]
[BlackElo "2613"]
[Result "1/2-1/2"]
[Round "07"]
[TimeControl "180+1"]
[Date "2022.12.20"]
[WhiteClock "0:00:05"]
[BlackClock "0:00:03"]

1. e4 {[%clk 0:03:00]}  c5 {[%clk 0:02:59]} 2. Nf3 {[%clk 0:02:59]}  Nc6 {[%clk 0:03:00]} 3. Bb5 {[%clk 0:02:59]}  g6 {[%clk 0:03:00]} 4. Bxc6 {[%clk 0:02:59]}  dxc6 {[%clk 0:03:00]} 5. d3 {[%clk 0:03:00]}  Bg7 {[%clk 0:02:59]} 6. h3 {[%clk 0:02:58]}  Nf6 {[%clk 0:02:59]} 7. Nc3 {[%clk 0:02:58]}  Nd7 {[%clk 0:02:51]} 8. Be3 {[%clk 0:02:58]}  e5 {[%clk 0:02:42]} 9. Qd2 {[%clk 0:02:58]}  h6 {[%clk 0:02:42]} 10. O-O {[%clk 0:02:45]}  b6 {[%clk 0:02:41]} 11. Nh2 {[%clk 0:02:42]}  Nf8 {[%clk 0:02:40]} 12. f4 {[%clk 0:02:41]}  exf4 {[%clk 0:02:40]} 13. Bxf4 {[%clk 0:02:42]}  Ne6 {[%clk 0:02:39]} 14. Be3 {[%clk 0:02:42]}  Nd4 {[%clk 0:02:37]} 15. Rae1 {[%clk 0:02:33]}  Be6 {[%clk 0:02:34]} 16. Nd1 {[%clk 0:02:21]}  Qd7 {[%clk 0:02:29]} 17. c3 {[%clk 0:02:15]}  Nb5 {[%clk 0:02:29]} 18. a4 {[%clk 0:02:15]}  Nc7 {[%clk 0:02:24]} 19. Nf2 {[%clk 0:02:09]}  g5 {[%clk 0:02:07]} 20. Nhg4 {[%clk 0:02:05]}  O-O {[%clk 0:01:54]} 21. Qe2 {[%clk 0:01:56]}  f5 {[%clk 0:01:48]} 22. exf5 {[%clk 0:01:56]}  Bxf5 {[%clk 0:01:48]} 23. Ne4 {[%clk 0:01:54]}  Nd5 {[%clk 0:01:44]} 24. Bc1 {[%clk 0:01:43]}  Rae8 {[%clk 0:01:40]} 25. Qd1 {[%clk 0:01:28]}  c4 {[%clk 0:01:27]} 26. dxc4 {[%clk 0:00:45]}  Rxe4 {[%clk 0:01:25]} 27. cxd5 {[%clk 0:00:39]}  Qxd5 {[%clk 0:01:14]} 28. Qxd5+ {[%clk 0:00:25]}  cxd5 {[%clk 0:01:15]} 29. Rxe4 {[%clk 0:00:21]}  dxe4 {[%clk 0:01:13]} 30. Be3 {[%clk 0:00:16]}  Rf7 {[%clk 0:00:19]} 31. Rd1 {[%clk 0:00:15]}  Bd7 {[%clk 0:00:13]} 32. Rd6 {[%clk 0:00:14]}  Kh7 {[%clk 0:00:10]} 33. Nf2 {[%clk 0:00:13]}  Bxa4 {[%clk 0:00:10]} 34. Ng4 {[%clk 0:00:10]}  Bb3 {[%clk 0:00:07]} 35. Rd8 {[%clk 0:00:08]}  Be6 {[%clk 0:00:05]} 36. Rd6 {[%clk 0:00:08]}  Bxg4 {[%clk 0:00:05]} 37. hxg4 {[%clk 0:00:09]}  Re7 {[%clk 0:00:06]} 38. Kf2 {[%clk 0:00:08]}  Kg8 {[%clk 0:00:06]} 39. Ke2 {[%clk 0:00:08]}  Kf7 {[%clk 0:00:07]} 40. Bd4 {[%clk 0:00:08]}  Bxd4 {[%clk 0:00:06]} 41. Rxd4 {[%clk 0:00:09]}  Kf6 {[%clk 0:00:03]} 42. Ke3 {[%clk 0:00:08]}  Re6 {[%clk 0:00:02]} 43. Rxe4 {[%clk 0:00:08]}  Rxe4+ {[%clk 0:00:03]} 44. Kxe4 {[%clk 0:00:09]}  Ke6 {[%clk 0:00:04]} 45. c4 {[%clk 0:00:08]}  a5 {[%clk 0:00:04]} 46. b3 {[%clk 0:00:08]}  Kd6 {[%clk 0:00:04]} 47. Kd4 {[%clk 0:00:02]}  Kc6 {[%clk 0:00:04]} 48. Kd3 {[%clk 0:00:02]}  Kc5 {[%clk 0:00:04]} 49. Kc3 {[%clk 0:00:03]}  b5 {[%clk 0:00:04]} 50. cxb5 {[%clk 0:00:03]}  Kxb5 {[%clk 0:00:05]} 51. Kd3 {[%clk 0:00:03]}  Kc5 {[%clk 0:00:05]} 52. Kc3 {[%clk 0:00:04]}  Kb5 {[%clk 0:00:05]} 53. Kd3 {[%clk 0:00:04]}  Kb4 {[%clk 0:00:05]} 54. Kc2 {[%clk 0:00:05]}  Kc5 {[%clk 0:00:03]} 55. Kc3 {[%clk 0:00:05]}  Kc6 {[%clk 0:00:03]} 56. Kc4 {[%clk 0:00:05]}  Kb6 {[%clk 0:00:04]} 57. Kd4 {[%clk 0:00:05]}  Kb5 {[%clk 0:00:03]} 58. Kd3 {[%clk 0:00:05]} 1/2-1/2


[Site "https://www.chess.com"]

[Event "Titled Tuesday Blitz December 20 Late 2022"]
[White "Matinian, Nikita"]
[Black "Moksh Amit Doshi"]
[WhiteFideId "24129100"]
[BlackFideId "25064967"]
[WhiteElo "2676"]
[BlackElo "2543"]
[Result "1-0"]
[Round "07"]
[TimeControl "180+1"]
[Date "2022.12.21"]
[WhiteClock "0:01:26"]
[BlackClock "0:01:03"]

1. e4 {[%clk 0:03:00]}  e5 {[%clk 0:02:55]} 2. Nf3 {[%clk 0:03:00]}  Nc6 {[%clk 0:02:55]} 3. Bb5 {[%clk 0:03:01]}  a6 {[%clk 0:02:55]} 4. Ba4 {[%clk 0:03:02]}  Nf6 {[%clk 0:02:55]} 5. d3 {[%clk 0:03:02]}  b5 {[%clk 0:02:52]} 6. Bb3 {[%clk 0:03:02]}  Bc5 {[%clk 0:02:52]} 7. c3 {[%clk 0:03:02]}  d6 {[%clk 0:02:52]} 8. Bg5 {[%clk 0:03:02]}  h6 {[%clk 0:02:51]} 9. Bh4 {[%clk 0:03:03]}  Bb6 {[%clk 0:02:47]} 10. Nbd2 {[%clk 0:03:01]}  Na5 {[%clk 0:02:45]} 11. Bc2 {[%clk 0:02:59]}  g5 {[%clk 0:02:46]} 12. Bg3 {[%clk 0:02:58]}  c5 {[%clk 0:02:46]} 13. a4 {[%clk 0:02:58]}  Bd7 {[%clk 0:02:32]} 14. axb5 {[%clk 0:02:56]}  axb5 {[%clk 0:02:33]} 15. Nf1 {[%clk 0:02:54]}  Nc6 {[%clk 0:02:31]} 16. Ne3 {[%clk 0:02:53]}  O-O {[%clk 0:02:11]} 17. Rxa8 {[%clk 0:02:46]}  Qxa8 {[%clk 0:02:10]} 18. h4 {[%clk 0:02:44]}  g4 {[%clk 0:02:10]} 19. Nh2 {[%clk 0:02:43]}  h5 {[%clk 0:02:10]} 20. O-O {[%clk 0:02:25]}  Ne7 {[%clk 0:02:10]} 21. Kh1 {[%clk 0:02:22]}  Kg7 {[%clk 0:02:00]} 22. f3 {[%clk 0:02:13]}  c4 {[%clk 0:01:59]} 23. d4 {[%clk 0:02:13]}  Ng6 {[%clk 0:01:53]} 24. fxg4 {[%clk 0:02:08]}  hxg4 {[%clk 0:01:46]} 25. Rxf6 {[%clk 0:02:07]}  Kxf6 {[%clk 0:01:43]} 26. Nd5+ {[%clk 0:02:07]}  Kg7 {[%clk 0:01:40]} 27. Nxb6 {[%clk 0:02:07]}  Qb7 {[%clk 0:01:40]} 28. Nxd7 {[%clk 0:02:07]}  Qxd7 {[%clk 0:01:41]} 29. h5 {[%clk 0:02:04]}  Nf4 {[%clk 0:01:38]} 30. Bxf4 {[%clk 0:02:05]}  exf4 {[%clk 0:01:39]} 31. Nxg4 {[%clk 0:02:01]}  Rh8 {[%clk 0:01:38]} 32. h6+ {[%clk 0:02:01]}  Kf8 {[%clk 0:01:38]} 33. Kg1 {[%clk 0:01:57]}  Qe7 {[%clk 0:01:37]} 34. Qf3 {[%clk 0:01:56]}  Qg5 {[%clk 0:01:37]} 35. e5 {[%clk 0:01:56]}  Qh4 {[%clk 0:01:16]} 36. exd6 {[%clk 0:01:35]}  f5 {[%clk 0:01:03]} 37. Bxf5 {[%clk 0:01:26]} 1-0


[Site "https://www.chess.com"]

[Event "Titled Tuesday Blitz December 20 Late 2022"]
[White "Megalios, Konstantinos"]
[Black "Makridis, Dimitrios"]
[WhiteFideId "4238044"]
[BlackFideId "25864475"]
[WhiteElo "2569"]
[BlackElo "2799"]
[Result "0-1"]
[Round "07"]
[TimeControl "180+1"]
[Date "2022.12.21"]
[WhiteClock "0:00:44"]
[BlackClock "0:00:50"]

1. e4 {[%clk 0:02:59]}  c5 {[%clk 0:02:58]} 2. Nf3 {[%clk 0:02:57]}  Nf6 {[%clk 0:02:56]} 3. e5 {[%clk 0:02:55]}  Nd5 {[%clk 0:02:53]} 4. Nc3 {[%clk 0:02:54]}  e6 {[%clk 0:02:53]} 5. g3 {[%clk 0:02:50]}  Nc6 {[%clk 0:02:41]} 6. Bg2 {[%clk 0:02:48]}  Nxc3 {[%clk 0:02:40]} 7. dxc3 {[%clk 0:02:48]}  d5 {[%clk 0:02:40]} 8. exd6 {[%clk 0:02:47]}  Bxd6 {[%clk 0:02:30]} 9. O-O {[%clk 0:02:42]}  O-O {[%clk 0:02:30]} 10. Kh1 {[%clk 0:02:43]}  Qc7 {[%clk 0:02:28]} 11. Be3 {[%clk 0:02:36]}  b6 {[%clk 0:02:27]} 12. Ng5 {[%clk 0:02:33]}  h6 {[%clk 0:02:24]} 13. Ne4 {[%clk 0:02:32]}  Be7 {[%clk 0:02:20]} 14. Qh5 {[%clk 0:02:26]}  Bb7 {[%clk 0:02:15]} 15. Rae1 {[%clk 0:02:21]}  Qe5 {[%clk 0:02:09]} 16. Qe2 {[%clk 0:02:09]}  Na5 {[%clk 0:02:04]} 17. Bf4 {[%clk 0:02:03]}  Qf5 {[%clk 0:02:04]} 18. b3 {[%clk 0:01:34]}  Rad8 {[%clk 0:01:53]} 19. Bc1 {[%clk 0:01:33]}  Rd7 {[%clk 0:01:46]} 20. f4 {[%clk 0:01:30]}  Qg6 {[%clk 0:01:35]} 21. g4 {[%clk 0:01:14]}  f5 {[%clk 0:01:34]} 22. gxf5 {[%clk 0:01:14]}  exf5 {[%clk 0:01:34]} 23. Ng3 {[%clk 0:01:15]}  Bxg2+ {[%clk 0:01:34]} 24. Qxg2 {[%clk 0:01:15]}  Kh7 {[%clk 0:01:26]} 25. Rg1 {[%clk 0:01:15]}  Bh4 {[%clk 0:01:25]} 26. Qf3 {[%clk 0:01:13]}  Qc6 {[%clk 0:01:22]} 27. Qxc6 {[%clk 0:01:09]}  Nxc6 {[%clk 0:01:23]} 28. Re6 {[%clk 0:01:09]}  Nd8 {[%clk 0:01:13]} 29. Re5 {[%clk 0:01:08]}  Bf6 {[%clk 0:01:10]} 30. Rxf5 {[%clk 0:01:06]}  g6 {[%clk 0:01:10]} 31. Re5 {[%clk 0:01:00]}  Bxe5 {[%clk 0:01:09]} 32. fxe5 {[%clk 0:01:01]}  Re7 {[%clk 0:01:06]} 33. Re1 {[%clk 0:00:59]}  Rfe8 {[%clk 0:01:02]} 34. Ne4 {[%clk 0:00:48]}  Rxe5 {[%clk 0:01:02]} 35. Nf6+ {[%clk 0:00:47]}  Kh8 {[%clk 0:01:02]} 36. Rg1 {[%clk 0:00:46]}  Rf8 {[%clk 0:00:50]} 37. Rxg6 {[%clk 0:00:45]}  Re1+ {[%clk 0:00:50]} 38. Kg2 {[%clk 0:00:44]}  Rxc1 {[%clk 0:00:50]} 0-1


[Site "https://www.chess.com"]